fUSD/lending_fUSD_20251123
["ID","MTS","AMOUNT","RATE_DAILY","PERIOD"]
[394701239,1763905910897,-500.0,0.00039452,8]
[394701240,1763905910906,-500.0,0.00039452,8]
[394701241,1763905910915,-537.7072862,0.00039452,8]
[394701242,1763905910924,-503.70246356,0.00039452,8]
[394701243,1763905910933,-500.0,0.00039452,8]
[394701244,1763905910942,-500.0,0.00039452,8]
[394701245,1763905910951,-963.13,0.00039452,8]
[394701246,1763905910960,-898.11,0.00039452,8]
[394701247,1763905910969,-1003.96,0.00039452,8]
[394701248,1763905910978,-500.0,0.00039452,8]
[394701249,1763905910987,-354.68936328,0.00039452,8]
[394701250,1763905910997,-500.0,0.00039452,8]
[394701251,1763905911006,-500.0,0.00039452,8]
[394701252,1763905911016,-336.47891306,0.00039452,8]
[394701253,1763905911025,-894.88,0.00039452,8]
[394701254,1763905911034,-500.0,0.00039452,8]
[394701255,1763905911043,-540.21,0.00039452,8]
[394701256,1763905911053,-500.0,0.00039452,8]
[394701257,1763905911063,-500.0,0.00039452,8]
[394701258,1763905911073,-874.81,0.00039452,8]
[394701259,1763905911082,-518.97,0.00039452,8]
[394701260,1763905911091,-500.0,0.00039452,8]
[394701261,1763905911101,-618.90150151,0.00039452,8]
[394701262,1763905911111,-500.0,0.00039452,8]
[394701263,1763905911121,-280.2051546,0.00039452,8]
[394701264,1763905911130,-500.0,0.00039452,8]
[394701265,1763905911140,-1060.07,0.00039452,8]
[394701266,1763905911149,-500.0,0.00039452,8]
[394701267,1763905911158,-500.0,0.00039452,8]
[394701268,1763905911167,-500.0,0.00039452,8]
[394701269,1763905911177,-529.43839941,0.00039452,8]
[394701270,1763905911186,-500.0,0.00039452,8]
[394701271,1763905911195,-500.0,0.00039452,8]
[394701272,1763905911205,-500.0,0.00039452,8]
[394701273,1763905911214,-591.64,0.00039452,8]
[394701274,1763905911223,-500.0,0.00039452,8]
[394701275,1763905911232,-1167.82,0.00039452,8]
[394701276,1763905911241,-500.0,0.00039452,8]
[394701277,1763905911250,-500.0,0.00039452,8]
[394701278,1763905911259,-500.0,0.00039452,8]
[394701279,1763905911269,-882.66,0.00039452,8]
[394701280,1763905911280,-500.0,0.00039452,8]
[394701281,1763905911291,-739.81,0.00039452,8]
[394701282,1763905911300,-755.0,0.00039452,8]
[394701283,1763905911310,-500.0,0.00039452,8]
[394701284,1763905911320,-651.54,0.00039452,8]
[394701285,1763905911330,-604.91079157,0.00039452,8]
[394701286,1763905911339,-261.21383924,0.00039452,8]
[394701287,1763905911348,-500.0,0.00039452,8]
[394701288,1763905911357,-500.0,0.00039452,8]
[394701289,1763905911368,-500.0,0.00039452,8]
[394701290,1763905911377,-500.0,0.00039452,8]
[394701291,1763905911386,-500.0,0.00039452,8]
[394701292,1763905911396,-500.0,0.00039452,8]
[394701293,1763905911406,-500.0,0.00039452,8]
[394701294,1763905911417,-482.89454626,0.00039452,8]
[394701295,1763905911426,-325.99383177,0.00039452,2]
[394701296,1763905911436,-500.0,0.00039452,8]
[394701297,1763905911445,-500.0,0.00039452,8]
[394701298,1763905911454,-642.75,0.00039452,8]
[394701299,1763905911463,-510.02076997,0.00039452,8]
[394701300,1763905911473,-500.0,0.00039452,8]
[394701301,1763905911485,-500.0,0.00039452,8]
[394701302,1763905911494,-578.7,0.00039452,8]
[394701303,1763905911503,-500.0,0.00039452,8]
[394701304,1763905911513,-880.68,0.00039452,2]
[394701305,1763905911523,-500.0,0.00039452,8]
[394701306,1763905911533,-510.7,0.00039452,8]
[394701307,1763905911543,-500.0,0.00039452,8]
[394701308,1763905911553,-500.0,0.00039452,8]
[394701309,1763905911563,-500.0,0.00039452,8]
[394701310,1763905911572,-500.0,0.00039452,8]
[394701311,1763905911581,-500.0,0.00039452,8]
[394701312,1763905911591,-500.0,0.00039452,8]
[394701313,1763905911600,-500.0,0.00039452,8]
[394701314,1763905911609,-500.0,0.00039452,8]
[394701315,1763905911618,-500.0,0.00039452,8]
[394701316,1763905911627,-500.0,0.00039452,8]
[394701317,1763905911637,-760.12,0.00039452,8]
[394701318,1763905911646,-500.0,0.00039452,8]
[394701319,1763905911655,-500.0,0.00039452,8]
[394701320,1763905911665,-500.0,0.00039452,8]
[394701321,1763905911674,-500.0,0.00039452,8]
[394701322,1763905911683,-1005.05,0.00039452,8]
[394701323,1763905911692,-968.73,0.00039452,8]
[394701324,1763905911701,-500.0,0.00039452,8]
[394701325,1763905911710,-647.51,0.00039452,8]
[394701326,1763905911719,-500.0,0.00039452,8]
[394701327,1763905911729,-500.0,0.00039452,8]
[394701328,1763905911743,-500.0,0.00039452,8]
[394701329,1763905911753,-500.0,0.00039452,8]
[394701330,1763905911762,-500.0,0.00039452,8]
[394701331,1763905911772,-585.68,0.00039452,8]
[394701332,1763905911781,-500.0,0.00039452,8]
[394701333,1763905911790,-500.0,0.00039452,8]
[394701334,1763905911800,-500.0,0.00039452,8]
[394701335,1763905911809,-500.0,0.00039452,8]
[394701336,1763905911819,-500.0,0.00039452,8]
[394701337,1763905911830,-500.0,0.00039452,8]
[394701338,1763905911841,-157.67759071,0.00039452,8]
[394701339,1763905911851,-500.0,0.00039452,8]
[394701340,1763905911860,-500.0,0.00039452,8]
[394701341,1763905911871,-523.21,0.00039452,8]
[394701342,1763905911881,-648.09,0.00039452,8]
[394701343,1763905911890,-752.93,0.00039452,8]
[394701344,1763905911900,-500.0,0.00039452,8]
[394701345,1763905911909,-500.0,0.00039452,8]
[394701346,1763905911918,-683.98,0.00039452,8]
[394701347,1763905911927,-500.0,0.00039452,8]
[394701348,1763905911937,-505.92215709,0.00039452,8]
[394701349,1763905911946,-500.0,0.00039452,8]
[394701350,1763905911955,-500.0,0.00039452,8]
[394701351,1763905911965,-504.60510683,0.00039452,8]
[394701352,1763905911974,-500.0,0.00039452,8]
[394701353,1763905911983,-500.0,0.00039452,8]
[394701354,1763905911994,-710.96,0.00039452,8]
[394701355,1763905912003,-500.0,0.00039452,8]
[394701356,1763905912013,-1059.02,0.00039452,8]
[394701357,1763905912023,-577.81,0.00039452,8]
[394701358,1763905912034,-500.0,0.00039452,8]
[394701359,1763905912043,-580.38488221,0.00039452,8]
[394701360,1763905912055,-795.04,0.00039452,8]
[394701361,1763905912065,-500.0,0.00039452,8]
[394701362,1763905912075,-500.0,0.00039452,8]
[394701363,1763905912084,-500.0,0.00039452,8]
[394701364,1763905912094,-762.27,0.00039452,8]
[394701365,1763905912103,-500.0,0.00039452,8]
[394701366,1763905912112,-754.39,0.00039452,8]
[394701367,1763905912121,-727.53,0.00039452,8]
[394701368,1763905912131,-500.0,0.00039452,8]
[394701369,1763905912140,-500.0,0.00039452,8]
[394701370,1763905912149,-594.57,0.00039452,8]
[394701371,1763905912158,-500.0,0.00039452,8]
[394701372,1763905912167,-1146.28,0.00039452,8]
[394701373,1763905912177,-500.0,0.00039452,8]
[394701374,1763905912187,-500.0,0.00039452,8]
[394701375,1763905912196,-500.0,0.00039452,8]
[394701376,1763905912205,-500.0,0.00039452,8]
[394701377,1763905912214,-563.18,0.00039452,8]
[394701378,1763905912223,-500.0,0.00039452,8]
[394701379,1763905912233,-282.85962934,0.00039452,8]
[394701380,1763905912242,-500.0,0.00039452,8]
[394701381,1763905912252,-500.0,0.00039452,8]
[394701382,1763905912264,-500.0,0.00039452,8]
[394701383,1763905912274,-500.0,0.00039452,8]
[394701384,1763905912284,-500.0,0.00039452,8]
[394701385,1763905912294,-616.34437399,0.00039452,8]
[394701386,1763905912304,-152.45635792,0.00039452,8]
[394701387,1763905912315,-500.0,0.00039452,8]
[394701388,1763905912324,-500.0,0.00039452,8]
[394701389,1763905912334,-524.8494355,0.00039452,8]
[394701390,1763905912343,-500.0,0.00039452,8]
[394701391,1763905912352,-499.33717568,0.00039452,8]
[394701392,1763905912362,-500.0,0.00039452,8]
[394701393,1763905912372,-360.2965849,0.00039452,8]
[394701394,1763905912381,-502.96645061,0.00039452,8]
[394701395,1763905912392,-500.0,0.00039452,8]
[394701396,1763905912402,-500.0,0.00039452,8]
[394701397,1763905912412,-785.97,0.00039452,8]
[394701398,1763905912422,-513.2093419,0.00039452,8]
[394701399,1763905912431,-500.0,0.00039452,8]
[394701400,1763905912441,-594.19,0.00039452,8]
[394701401,1763905912451,-500.0,0.00039452,8]
[394701402,1763905912460,-500.0,0.00039452,8]
[394701403,1763905912470,-513.84,0.00039452,8]
[394701404,1763905912484,-500.0,0.00039452,8]
[394701405,1763905912493,-500.0,0.00039452,8]
[394701406,1763905912502,-635.86,0.00039452,8]
[394701407,1763905912512,-503.31454811,0.00039452,8]
[394701408,1763905912522,-500.0,0.00039452,8]
[394701409,1763905912533,-500.0,0.00039452,8]
[394701410,1763905912543,-500.0,0.00039452,8]
[394701411,1763905912555,-558.31,0.00039452,8]
[394701412,1763905912564,-500.0,0.00039452,8]
[394701413,1763905912574,-500.0,0.00039452,8]
[394701414,1763905912583,-500.0,0.00039452,8]
[394701415,1763905912592,-500.0,0.00039452,8]
[394701416,1763905912602,-500.0,0.00039452,8]
[394701417,1763905912612,-500.0,0.00039452,8]
[394701418,1763905912621,-500.0,0.00039452,8]
[394701419,1763905912630,-300.0,0.00039452,2]
[394701420,1763905912641,-500.0,0.00039452,8]
[394701421,1763905912651,-500.0,0.00039452,8]
[394701422,1763905912661,-500.0,0.00039452,8]
[394701423,1763905912671,-500.0,0.00039452,8]
[394701424,1763905912681,-500.0,0.00039452,8]
[394701425,1763905912691,-500.0,0.00039452,8]
[394701426,1763905912703,-539.06086567,0.00039452,8]
[394701427,1763905912713,-500.0,0.00039452,8]
[394701428,1763905912723,-500.0,0.00039452,8]
[394701429,1763905912733,-500.0,0.00039452,8]
[394701430,1763905912751,-500.0,0.00039452,8]
[394701431,1763905912760,-701.06,0.00039452,8]
[394701432,1763905912770,-500.0,0.00039452,8]
[394701433,1763905912779,-727.9,0.00039452,8]
[394701434,1763905912790,-583.25593033,0.00039452,8]
[394701435,1763905912799,-379.2821907,0.00039452,8]
[394701436,1763905912809,-500.0,0.00039452,8]
[394701437,1763905912819,-176.59929452,0.00039452,8]
[394701438,1763905912830,-500.0,0.00039452,8]
[394701439,1763905912839,-984.55,0.00039452,8]
[394701440,1763905912849,-553.49,0.00039452,8]
[394701441,1763905912859,-500.0,0.00039452,8]
[394701442,1763905912869,-768.57,0.00039452,8]
[394701443,1763905912879,-503.25266292,0.00039452,8]
[394701444,1763905912890,-500.0,0.00039452,8]
[394701445,1763905912900,-503.76628851,0.00039452,8]
[394701446,1763905912911,-500.0,0.00039452,8]
[394701447,1763905912920,-500.0,0.00039452,8]
[394701448,1763905912931,-500.0,0.00039452,8]
[394701449,1763905912941,-500.0,0.00039452,8]
[394701450,1763905912951,-500.0,0.00039452,8]
[394701451,1763905912962,-500.0,0.00039452,8]
[394701452,1763905912973,-500.0,0.00039452,8]
[394701453,1763905912984,-500.0,0.00039452,8]
[394701454,1763905912995,-500.0,0.00039452,8]
[394701455,1763905913004,-559.72488453,0.00039452,8]
[394701456,1763905913014,-500.0,0.00039452,8]
[394701457,1763905913024,-533.48984924,0.00039452,8]
[394701458,1763905913034,-500.0,0.00039452,8]
[394701459,1763905913043,-500.0,0.00039452,8]
[394701460,1763905913054,-500.0,0.00039452,8]
[394701461,1763905913064,-500.0,0.00039452,8]
[394701462,1763905913074,-500.0,0.00039452,8]
[394701463,1763905913083,-500.0,0.00039452,8]
[394701464,1763905913092,-519.46271973,0.00039452,8]
[394701465,1763905913101,-500.0,0.00039452,8]
[394701466,1763905913110,-500.0,0.00039452,8]
[394701467,1763905913120,-264.08046186,0.00039452,8]
[394701468,1763905913129,-711.01,0.00039452,8]
[394701469,1763905913139,-500.0,0.00039452,8]
[394701470,1763905913148,-573.4618911,0.00039452,8]
[394701471,1763905913157,-500.0,0.00039452,8]
[394701472,1763905913167,-552.32608957,0.00039452,8]
[394701473,1763905913176,-500.0,0.00039452,8]
[394701474,1763905913185,-518.88,0.00039452,8]
[394701475,1763905913195,-527.53,0.00039452,8]
[394701476,1763905913204,-500.0,0.00039452,8]
[394701477,1763905913213,-502.45751126,0.00039452,8]
[394701478,1763905913223,-500.0,0.00039452,8]
[394701479,1763905913232,-500.0,0.00039452,8]
[394701480,1763905913241,-500.0,0.00039452,8]
[394701481,1763905913250,-500.0,0.00039452,8]
[394701482,1763905913260,-503.72,0.00039452,8]
[394701483,1763905913270,-500.0,0.00039452,8]
[394701484,1763905913280,-549.10756939,0.00039452,8]
[394701485,1763905913290,-500.0,0.00039452,8]
[394701486,1763905913300,-500.0,0.00039452,8]
[394701487,1763905913310,-500.0,0.00039452,8]
[394701488,1763905913319,-619.88,0.00039452,8]
[394701489,1763905913329,-500.0,0.00039452,8]
[394701490,1763905913339,-559.56,0.00039452,8]
[394701491,1763905913349,-500.0,0.00039452,8]
[394701492,1763905913359,-500.0,0.00039452,8]
[394701493,1763905913369,-526.34,0.00039452,8]
[394701494,1763905913379,-500.0,0.00039452,8]
[394701495,1763905913390,-500.0,0.00039452,8]
[394701496,1763905913400,-500.0,0.00039452,8]
[394701497,1763905913411,-500.0,0.00039452,8]
[394701498,1763905913627,-500.0,0.00039452,8]
[394701499,1763905913643,-500.0,0.00039452,8]
[394701500,1763905913652,-500.0,0.00039452,8]
[394701501,1763905913663,-500.0,0.00039452,8]
[394701502,1763905913672,-571.15,0.00039452,8]
[394701503,1763905913682,-760.34,0.00039452,8]
[394701504,1763905913691,-500.0,0.00039452,8]
[394701505,1763905913700,-644.42,0.00039452,8]
[394701506,1763905913710,-333.93887472,0.00039452,8]
[394701507,1763905913719,-500.0,0.00039452,8]
[394701508,1763905913729,-1144.68,0.00039452,8]
[394701509,1763905913739,-500.0,0.00039452,8]
[394701510,1763905913750,-500.0,0.00039452,8]
[394701511,1763905913760,-500.0,0.00039452,8]
[394701512,1763905913771,-500.0,0.00039452,8]
[394701513,1763905913781,-500.0,0.00039452,8]
[394701514,1763905913791,-500.0,0.00039452,8]
[394701515,1763905913801,-500.0,0.00039452,8]
[394701516,1763905913810,-500.0,0.00039452,8]
[394701517,1763905913820,-500.0,0.00039452,8]
[394701518,1763905913830,-500.0,0.00039452,8]
[394701519,1763905913839,-500.0,0.00039452,8]
[394701520,1763905913849,-500.0,0.00039452,10]
[394701521,1763905913859,-500.0,0.00039452,8]
[394701522,1763905913868,-799.4,0.00039452,8]
[394701523,1763905913878,-151.57147971,0.00039452,8]
[394701524,1763905913888,-500.0,0.00039452,8]
[394701525,1763905913897,-598.44414478,0.00039452,8]
[394701526,1763905913906,-541.62,0.00039452,8]
[394701527,1763905913916,-552.06,0.00039452,8]
[394701528,1763905913927,-500.0,0.00039452,8]
[394701529,1763905913937,-500.0,0.00039452,8]
[394701530,1763905913947,-744.79,0.00039452,8]
[394701531,1763905913956,-248.02094245,0.00039452,8]
[394701532,1763905913967,-504.86336671,0.00039452,8]
[394701533,1763905913985,-500.0,0.00039452,8]
[394701534,1763905913999,-500.0,0.00039452,8]
[394701535,1763905914011,-500.0,0.00039452,8]
[394701536,1763905914022,-500.0,0.00039452,8]
[394701537,1763905914033,-500.0,0.00039452,8]
[394701538,1763905914044,-500.0,0.00039452,8]
[394701539,1763905914055,-579.91,0.00039452,8]
[394701540,1763905914066,-504.56548265,0.00039452,8]
[394701541,1763905914077,-500.0,0.00039452,8]
[394701542,1763905914088,-500.0,0.00039452,8]
[394701543,1763905914099,-500.0,0.00039452,8]
[394701544,1763905914109,-500.0,0.00039452,8]
[394701545,1763905914119,-500.0,0.00039452,8]
[394701546,1763905914129,-500.0,0.00039452,8]
[394701547,1763905914140,-500.0,0.00039452,2]
[394701548,1763905914150,-500.0,0.00039452,8]
[394701549,1763905914160,-500.0,0.00039452,8]
[394701550,1763905914170,-500.0,0.00039452,8]
[394701551,1763905914181,-597.51,0.00039452,8]
[394701552,1763905914191,-500.0,0.00039452,8]
[394701553,1763905914202,-1023.67,0.00039452,8]
[394701554,1763905914212,-500.0,0.00039452,8]
[394701555,1763905914222,-500.0,0.00039452,8]
[394701556,1763905914231,-665.33,0.00039452,8]
[394701557,1763905914242,-500.0,0.00039452,8]
[394701558,1763905914253,-762.94,0.00039452,8]
[394701559,1763905914263,-500.0,0.00039452,8]
[394701560,1763905914273,-500.0,0.00039452,8]
[394701561,1763905914283,-815.01,0.00039452,8]
[394701562,1763905914293,-696.88,0.00039452,8]
[394701563,1763905914304,-500.0,0.00039452,8]
[394701564,1763905914314,-284.73921179,0.00039452,8]
[394701565,1763905914324,-791.97,0.00039452,8]
[394701566,1763905914334,-500.0,0.00039452,8]
[394701567,1763905914344,-500.0,0.00039452,8]
[394701568,1763905914355,-500.0,0.00039452,8]
[394701569,1763905914365,-731.12,0.00039452,8]
[394701570,1763905914376,-500.0,0.00039452,8]
[394701571,1763905914387,-500.0,0.00039452,8]
[394701572,1763905914398,-500.0,0.00039452,8]
[394701573,1763905914408,-500.0,0.00039452,8]
[394701574,1763905914418,-500.0,0.00039452,8]
[394701575,1763905914429,-500.0,0.00039452,8]
[394701576,1763905914440,-505.54665788,0.00039452,8]
[394701577,1763905914451,-500.0,0.00039452,8]
[394701578,1763905914460,-500.0,0.00039452,8]
[394701579,1763905914475,-523.6907981,0.00039452,8]
[394701580,1763905914486,-500.0,0.00039452,8]
[394701581,1763905914498,-434.00785317,0.00039452,8]
[394701582,1763905914508,-538.75562918,0.00039452,8]
[394701583,1763905914518,-500.0,0.00039452,8]
[394701584,1763905914528,-647.89,0.00039452,8]
[394701585,1763905914545,-569.17,0.00039452,8]
[394701586,1763905914556,-500.0,0.00039452,8]
[394701587,1763905914566,-500.0,0.00039452,8]
[394701588,1763905914577,-500.0,0.00039452,8]
[394701589,1763905914588,-500.0,0.00039452,8]
[394701590,1763905914598,-500.0,0.00039452,8]
[394701591,1763905914609,-500.0,0.00039452,8]
[394701592,1763905914619,-500.0,0.00039452,8]
[394701593,1763905914630,-500.0,0.00039452,8]
[394701594,1763905914640,-821.83,0.00039452,8]
[394701595,1763905914650,-500.0,0.00039452,8]
[394701596,1763905914662,-926.53,0.00039452,8]
[394701597,1763905914674,-500.0,0.00039452,8]
[394701598,1763905914684,-500.0,0.00039452,8]
[394701599,1763905914696,-500.0,0.00039452,8]
[394701600,1763905914706,-500.0,0.00039452,8]
[394701601,1763905914717,-500.0,0.00039452,8]
[394701602,1763905914727,-500.0,0.00039452,8]
[394701603,1763905914738,-500.0,0.00039452,8]
[394701604,1763905914749,-994.9,0.00039452,8]
[394701605,1763905914759,-500.0,0.00039452,8]
[394701606,1763905914769,-500.0,0.00039452,8]
[394701607,1763905914779,-760.23,0.00039452,8]
[394701608,1763905914788,-500.0,0.00039452,8]
[394701609,1763905914798,-500.0,0.00039452,8]
[394701610,1763905914808,-500.0,0.00039452,8]
[394701611,1763905914818,-500.0,0.00039452,8]
[394701612,1763905914828,-500.0,0.00039452,8]
[394701613,1763905914838,-566.47968602,0.00039452,8]
[394701614,1763905914848,-1088.47,0.00039452,8]
[394701615,1763905914863,-500.0,0.00039452,8]
[394701616,1763905914873,-505.65344927,0.00039452,8]
[394701617,1763905914884,-500.0,0.00039452,8]
[394701618,1763905914895,-500.0,0.00039452,8]
[394701619,1763905914905,-500.0,0.00039452,8]
[394701620,1763905914916,-500.0,0.00039452,8]
[394701621,1763905914927,-500.0,0.00039452,8]
[394701622,1763905914939,-500.0,0.00039452,8]
[394701623,1763905914952,-500.0,0.00039452,8]
[394701624,1763905914962,-1083.3,0.00039452,8]
[394701625,1763905914972,-652.37,0.00039452,8]
[394701626,1763905914982,-500.0,0.00039452,8]
[394701627,1763905914991,-1037.03,0.00039452,8]
[394701628,1763905915002,-500.0,0.00039452,8]
[394701629,1763905915011,-500.0,0.00039452,8]
[394701630,1763905915020,-603.39,0.00039452,8]
[394701631,1763905915030,-500.0,0.00039452,8]
[394701632,1763905915039,-500.0,0.00039452,8]
[394701633,1763905915048,-500.0,0.00039452,8]
[394701634,1763905915058,-500.0,0.00039452,8]
[394701635,1763905915067,-500.0,0.00039452,8]
[394701636,1763905915077,-753.37,0.00039452,8]
[394701637,1763905915092,-500.57,0.00039452,8]
[394701638,1763905915102,-500.0,0.00039452,8]
[394701639,1763905915112,-630.06,0.00039452,8]
[394701640,1763905915121,-500.0,0.00039452,8]
[394701641,1763905915130,-2821.61,0.00039452,8]
[394701642,1763905915140,-500.0,0.00039452,8]
[394701643,1763905915149,-745.91,0.00039452,8]
[394701644,1763905915159,-517.31973521,0.00039452,8]
[394701645,1763905915169,-663.82,0.00039452,8]
[394701646,1763905915179,-500.0,0.00039452,8]
[394701647,1763905915188,-301.60181563,0.00039452,8]
[394701648,1763905915197,-500.0,0.00039452,8]
[394701649,1763905915207,-500.0,0.00039452,8]
[394701650,1763905915217,-548.05,0.00039452,8]
[394701651,1763905915227,-1021.65,0.00039452,8]
[394701652,1763905915236,-500.0,0.00039452,8]
[394701653,1763905915245,-645.20754756,0.00039452,8]
[394701654,1763905915255,-573.67,0.00039452,8]
[394701655,1763905915264,-500.0,0.00039452,8]
[394701656,1763905915273,-500.0,0.00039452,8]
[394701657,1763905915283,-500.0,0.00039452,8]
[394701658,1763905915292,-500.0,0.00039452,8]
[394701659,1763905915302,-1218.63,0.00039452,8]
[394701660,1763905915312,-500.0,0.00039452,8]
[394701661,1763905915322,-776.2,0.00039452,8]
[394701662,1763905915332,-500.0,0.00039452,8]
[394701663,1763905915345,-2520.27,0.00039452,8]
[394701664,1763905915356,-500.0,0.00039452,8]
[394701665,1763905915367,-500.0,0.00039452,8]
[394701666,1763905915376,-500.0,0.00039452,8]
[394701667,1763905915388,-753.51,0.00039452,8]
[394701668,1763905915398,-500.0,0.00039452,8]
[394701669,1763905915409,-500.0,0.00039452,8]
[394701670,1763905915419,-500.0,0.00039452,8]
[394701671,1763905915429,-500.0,0.00039452,8]
[394701672,1763905915439,-500.0,0.00039452,8]
[394701673,1763905915449,-500.0,0.00039452,8]
[394701674,1763905915459,-500.0,0.00039452,8]
[394701675,1763905915469,-500.0,0.00039452,8]
[394701676,1763905915483,-858.86,0.00039452,8]
[394701677,1763905915493,-500.0,0.00039452,8]
[394701678,1763905915503,-500.0,0.00039452,8]
[394701679,1763905915512,-500.0,0.00039452,8]
[394701680,1763905915523,-500.0,0.00039452,8]
[394701681,1763905915532,-500.0,0.00039452,8]
[394701682,1763905915542,-507.2609215,0.00039452,8]
[394701683,1763905915553,-595.6,0.00039452,8]
[394701684,1763905915563,-500.0,0.00039452,8]
[394701685,1763905915573,-500.0,0.00039452,2]
[394701686,1763905915583,-500.0,0.00039452,8]
[394701687,1763905915592,-500.0,0.00039452,8]
[394701688,1763905915602,-1292.53,0.00039452,8]
[394701689,1763905915611,-1655.43,0.00039452,8]
[394701690,1763905915620,-503.37278345,0.00039452,8]
[394701691,1763905915629,-500.0,0.00039452,8]
[394701692,1763905915642,-967.83,0.00039452,8]
[394701693,1763905915651,-500.0,0.00039452,8]
[394701694,1763905915661,-993.25,0.00039452,8]
[394701695,1763905915670,-500.0,0.00039452,8]
[394701696,1763905915680,-588.86,0.00039452,8]
[394701697,1763905915689,-500.0,0.00039452,8]
[394701698,1763905915699,-500.0,0.00039452,8]
[394701699,1763905915708,-500.0,0.00039452,8]
[394701700,1763905915718,-500.0,0.00039452,8]
[394701701,1763905915728,-897.63,0.00039452,8]
[394701702,1763905915737,-502.96362985,0.00039452,8]
[394701703,1763905915747,-500.0,0.00039452,8]
[394701704,1763905915757,-500.0,0.00039452,8]
[394701705,1763905915766,-500.0,0.00039452,8]
[394701706,1763905915775,-500.0,0.00039452,8]
[394701707,1763905915784,-500.0,0.00039452,8]
[394701708,1763905915794,-563.39,0.00039452,8]
[394701709,1763905915804,-1139.51,0.00039452,8]
[394701710,1763905915813,-513.55,0.00039452,8]
[394701711,1763905915823,-921.29,0.00039452,8]
[394701712,1763905915833,-637.21,0.00039452,8]
[394701713,1763905915842,-500.0,0.00039452,8]
[394701714,1763905915851,-500.0,0.00039452,8]
[394701715,1763905915863,-667.24,0.00039452,8]
[394701716,1763905915873,-500.0,0.00039452,8]
[394701717,1763905915882,-500.0,0.00039452,8]
[394701718,1763905915892,-500.0,0.00039452,8]
[394701719,1763905915902,-500.0,0.00039452,8]
[394701720,1763905915911,-500.0,0.00039452,8]
[394701721,1763905915921,-500.0,0.00039452,8]
[394701722,1763905915931,-500.0,0.00039452,8]
[394701723,1763905915940,-1216.71,0.00039452,8]
[394701724,1763905915950,-2238.0,0.00039452,8]
[394701725,1763905915960,-773.42,0.00039452,8]
[394701726,1763905915969,-500.0,0.00039452,8]
[394701727,1763905915979,-500.0,0.00039452,8]
[394701728,1763905915988,-671.74,0.00039452,8]
[394701729,1763905915999,-523.61,0.00039452,8]
[394701730,1763905916009,-1057.49,0.00039452,8]
[394701731,1763905916019,-733.1,0.00039452,8]
[394701732,1763905916027,-500.0,0.00039452,8]
[394701733,1763905916042,-500.0,0.00039452,8]
[394701734,1763905916052,-500.0,0.00039452,8]
[394701735,1763905916062,-500.0,0.00039452,8]
[394701736,1763905916072,-900.28,0.00039452,8]
[394701737,1763905916082,-500.0,0.00039452,8]
[394701738,1763905916091,-500.0,0.00039452,8]